Cogmind - Beta 14 @@@ ROGUE MODE // 2024.09.21 @ 17:46:31 Player: Waste Result: Destroyed by P1-3CE with P1-3CE's Gatling Flakker Performance ------------- Evolutions (1) 500 Regions Visited (6) 1200 Robots Destroyed (69) 345 Value Destroyed (1457) 1457 Prototype IDs (23) 460 Alien Tech Used (0) 0 Bonus (445) 445 TOTAL SCORE: 4407 Bonus ------- High Alert Combat Kills 26 Follower Combat Kills 159 Aligned with FarCom 300 Friendly Fire -40 Cogmind --------- Core Integrity 0/400 Matter 290/300 Energy 62/100 System Corruption 0% Temperature Hot (213) Movement Treading (240) Ox1 Location -8/Mines Parts ------- > --- POWER (1) -------- (None) > --- PROPULSION (3) --- Light Treads Light Treads > --- UTILITY (2) ------ High-capacity Storage Unit Improved Light Armor Plating > --- WEAPON (3) ------- Spread Laser Spread Laser Spread Laser > --- INVENTORY (20) --- Ion Engine Light Ion Engine Light Treads Light Treads Light Treads Light Treads Huge Storage Unit Structural Scanner Improved Sensor Array Experimental Sensor Array Improved Light Armor Plating Improved Light Armor Plating Shield Generator Hacking Suite Beam Rifle Assault Rifle Heavy Assault Rifle Grenade Launcher Rocket Launcher Peak State ------------ > --- POWER ------------ Improved Ion Engine > --- PROPULSION ------- Light Treads Light Treads Light Treads > --- UTILITY ---------- High-capacity Storage Unit Improved Light Armor Plating > --- WEAPON ----------- Spread Laser Assault Rifle Heavy Assault Rifle > --- INVENTORY -------- Ion Engine Light Ion Engine Light Treads Light Treads Light Treads Light Treads Light Treads Huge Storage Unit Structural Scanner Improved Sensor Array Medium Armor Plating Medium Armor Plating Shield Generator Hacking Suite Beam Rifle Spread Laser Spread Laser Heavy Assault Rifle Improved Light Cannon Grenade Launcher [Rating: 17] Favorites ----------- Power Ion Engine Engine Ion Engine Propulsion Light Treads Treads Light Treads Leg Aluminum Leg Wheel Wheel Utility High-capacity Storage Unit Storage High-capacity Storage Unit Protection Improved Light Armor Plating Weapon Assault Rifle Energy Gun Spread Laser Ballistic Gun Assault Rifle Build | -11 -10 -10 -9 -9 -9 -8 ------- Run | Yrd Mat Min Mat Min Exi Min Slots Evolved 2 | . . . 2 . . . Power . | . . . . . . . Propulsion 1 | . . . 1 . . . Utility . | . . . . . . . Weapon 1 | . . . 1 . . . Parts Attached 34 | . 9 6 15 1 . 3 Power 5 | . 2 1 1 1 . . Engine 5 | . 2 1 1 1 . . Core . | . . . . . . . Reactor . | . . . . . . . Propulsion 13 | . 5 2 6 . . . Treads 7 | . . 2 5 . . . Leg 5 | . 5 . . . . . Wheel 1 | . . . 1 . . . Hover . | . . . . . . . Flight . | . . . . . . . Utility 4 | . 1 1 2 . . . Device . | . . . . . . . Storage 1 | . 1 . . . . . Processor . | . . . . . . . Hackware . | . . . . . . . Protection 3 | . . 1 2 . . . Artifact . | . . . . . . . Weapon 12 | . 1 2 6 . . 3 Energy Gun 6 | . 1 1 2 . . 2 Energy Cannon . | . . . . . . . Ballistic Gun 6 | . . 1 4 . . 1 Ballistic Cannon . | . . . . . . . Launcher . | . . . . . . . Special Weapon . | . . . . . . . Impact Weapon . | . . . . . . . Slashing Weapon . | . . . . . . . Piercing Weapon . | . . . . . . . Special Melee Weapon . | . . . . . . . Unidentified Prototypes . | . . . . . . . Parts Lost 10 | . 1 5 . 1 . 3 Power 3 | . . 1 . 1 . 1 Propulsion 3 | . 1 1 . . . 1 Utility 1 | . . 1 . . . . Weapon 3 | . . 2 . . . 1 Highest Loss Streak 4 | . 1 4 . 1 . 2 To Critical Strikes . | . . . . . . . Average Slot Usage (%) 94 | . 84 91 99 99 100 99 Engine 12 | . 14 13 11 10 11 11 Treads 19 | . . 9 30 33 33 33 Leg 10 | . 27 17 . . . . Storage 12 | . 14 14 11 11 11 11 Protection 7 | . . 6 10 11 11 11 Energy Gun 10 | . 14 6 11 11 11 16 Ballistic Gun 19 | . 14 21 21 22 22 15 Peak Build Rating 17 | . 7 8 17 17 17 17 Average Rating 11 | . 6 7 14 16 17 16 On Entrance 10 | 6 6 7 6 17 17 17 Naked Turns . | . . . . . . . Heaviest Build 62 | 13 49 52 62 58 54 54 Greatest Support 60 | 20 20 40 60 60 60 60 Greatest Overweight (x) 5 | . 2 2 5 . . . Average Overweight (x) 1 | . 1 1 1 . . . Largest Inventory Capacity 20 | . 20 20 20 20 20 20 Average Capacity 19 | . 15 20 20 20 20 20 Most Carried 20 | . 14 14 20 20 20 20 Average Carried 15 | . 10 11 18 19 20 19 Final Capacity 20 | 8 20 20 20 20 20 20 Final Carried 20 | 6 14 9 20 20 20 19 Class Distribution -------------------- 48% | Mutant 29% | Scavenger-Tank 21% | Tank Dominant Class ---------------- Mutant | -10/Materials Mutant | -10/Mines Tank | -9/Materials Scavenger-Tank | -9/Mines Scavenger-Tank | -9/Exiles Scavenger-Tank | -8/Mines Resources | -11 -10 -10 -9 -9 -9 -8 ----------- Run | Yrd Mat Min Mat Min Exi Min Matter Collected 1203 | 200 233 119 518 83 . 50 Remotely . | . . . . . . . Salvage Created 2132 | . 667 196 928 216 . 125 Parts 135 | . 45 11 64 9 . 6 Haulers Intercepted 4 | . . . 4 . . . Recyclers Shooed 5 | . 1 2 2 . . . Parts Field Recycled . | . . . . . . . Retrieved Matter . | . . . . . . . Parts Self-Destructed . | . . . . . . . Prevented . | . . . . . . . Kills | -11 -10 -10 -9 -9 -9 -8 ------- Run | Yrd Mat Min Mat Min Exi Min Combat Hostiles Destroyed 52 | . 16 6 22 5 . 3 Guns 52 | . 16 6 22 5 . 3 Classes Destroyed 11 | . 5 2 4 . . . Worker 6 | . 3 . 3 . . . Builder 2 | . . . 2 . . . Hauler 4 | . . . 4 . . . Recycler 5 | . 2 2 . 1 . . Operator 1 | . . . 1 . . . Watcher 1 | . 1 . . . . . Swarmer 22 | . 9 3 10 . . . Grunt 21 | . 7 . 6 5 . 3 Sentry 6 | . . . 6 . . . Demolisher 1 | . . 1 . . . . Assembled 2 | . . 2 . . . . Best Kill Streak 6 | . 6 5 6 4 . 3 Combat Bots Only 5 | . 3 3 5 3 . 3 Max Kills in Single Turn 2 | . 2 1 2 1 . 1 Gunslinging 1 | . 1 . . . . . Exploded . | . . . . . . . Melee . | . . . . . . . Uniques/NPCs Destroyed . | . . . . . . . Combat | -11 -10 -10 -9 -9 -9 -8 -------- Run | Yrd Mat Min Mat Min Exi Min Hostile Shots Fired 241 | . 62 43 74 12 . 50 Missed 60 | . 15 6 28 4 . 7 Damage Taken 2594 | . 472 617 562 125 . 818 Core 641 | . 69 164 49 32 . 327 Absorbed by Shields . | . . . . . . . Core Remaining (%) 53 | 100 . 6 . . . . Volleys Fired 166 | . 56 22 63 13 1 11 Largest 3 | . 2 2 3 3 3 3 Hottest 195 | . 70 70 108 108 108 195 Shots Fired 410 | . 112 43 185 39 3 28 Gun 410 | . 112 43 185 39 3 28 Cannon . | . . . . . . . Launcher . | . . . . . . . Special . | . . . . . . . Kinetic 262 | . 56 39 126 26 2 13 Thermal 148 | . 56 4 59 13 1 15 Explosive . | . . . . . . . Electromagnetic . | . . . . . . . Robot Hit Streak 27 | . 6 3 13 27 4 11 Robot Miss Streak 8 | . 5 5 8 3 4 4 Penetration Max . | . . . . . . . Secondary Targets 10 | . 2 2 5 . . 1 Max Gunslinging Chain 1 | . 1 1 1 . . 1 Shots Hit Robots 244 | . 57 18 108 33 2 26 Core Hits 169 | . 32 11 76 26 . 24 Critical Kills 1 | . . 1 . . . . Critical Parts Destroyed . | . . . . . . . Critical Strikes 3 | . 1 1 1 . . . Burn 2 | . 1 . 1 . . . Destroy 1 | . . 1 . . . . Melee Attacks . | . . . . . . . Impact . | . . . . . . . Slashing . | . . . . . . . Piercing . | . . . . . . . Sneak Attacks . | . . . . . . . Combat Hostiles . | . . . . . . . Follow-up Attacks . | . . . . . . . Damage Inflicted 3506 | . 772 264 1515 542 23 390 Guns 3376 | . 760 254 1455 494 23 390 Cannons . | . . . . . . . Explosions . | . . . . . . . Melee . | . . . . . . . Ramming 130 | . 12 10 60 48 . . Kinetic 1887 | . 405 241 815 267 13 146 Thermal 1489 | . 355 13 640 227 10 244 Explosive . | . . . . . . . Electromagnetic . | . . . . . . . Impact . | . . . . . . . Slashing . | . . . . . . . Piercing . | . . . . . . . Highest Corruption . | . . . . . . . Average Corruption . | . . . . . . . Corruption Purged . | . . . . . . . Corruption Blocked . | . . . . . . . Overload Shots . | . . . . . . . Overflow Damage . | . . . . . . . Projectiles . | . . . . . . . Explosions . | . . . . . . . Melee . | . . . . . . . Knockbacks . | . . . . . . . Impact . | . . . . . . . Kinetic . | . . . . . . . Secondary . | . . . . . . . Self-Inflicted Damage . | . . . . . . . Shots . | . . . . . . . Rammed 13 | . . 2 7 4 . . Targets Rammed 19 | . 6 2 7 4 . . Kicked 6 | . 6 . . . . . Crushed . | . . . . . . . Highest Temperature 363 | . 98 18 316 273 45 363 Average Temperature 77 | . 23 10 80 136 30 194 Received Heat Transfer 477 | . 138 . 150 72 . 117 Effects 5 | . . . . 4 . 1 Energy Bleed 2 | . . . . 1 . 1 Interference 3 | . . . . 3 . . Siege Activations . | . . . . . . . Robots Corrupted . | . . . . . . . Combat Hostiles . | . . . . . . . Parts Fried . | . . . . . . . Impact Corruptions . | . . . . . . . Robots Melted . | . . . . . . . Combat Hostiles . | . . . . . . . Parts Melted 1 | . 1 . . . . . Heat Transferred 2854 | . 1110 37 1216 280 15 196 Parts Sabotaged . | . . . . . . . Parts Stolen . | . . . . . . . Parts Stripped . | . . . . . . . Power Chain Reactions . | . . . . . . . Alert | -11 -10 -10 -9 -9 -9 -8 ------- Run | Yrd Mat Min Mat Min Exi Min Peak Influence 504 | . 367 145 504 311 . 60 Initial 196 | . . 75 . 196 . . Average 167 | . 223 25 240 212 . 31 Maximum Alert Level 2 | . 1 . 2 1 . . Low Security (%) 60 | . 30 100 50 42 . 100 Level 1 32 | . 69 . 33 57 . . Level 2 6 | . . . 16 . . . Level 3 . | . . . . . . . Level 4 . | . . . . . . . Level 5 . | . . . . . . . High Security . | . . . . . . . Max Security . | . . . . . . . Squads Dispatched 6 | . 4 . 2 . . . Investigation 2 | . 1 . 1 . . . Extermination . | . . . . . . . Reinforcement 4 | . 3 . 1 . . . Assault . | . . . . . . . Garrison . | . . . . . . . Intercept . | . . . . . . . Searches Triggered . | . . . . . . . Construction Impeded . | . . . . . . . Haulers Reinforced . | . . . . . . . Active Scanning Responses . | . . . . . . . Cargo Convoy Interrupts . | . . . . . . . Stealth | -11 -10 -10 -9 -9 -9 -8 --------- Run | Yrd Mat Min Mat Min Exi Min Distress Signals 7 | . 4 . 3 . . . Communications Jammed . | . . . . . . . Distress Signals . | . . . . . . . Times Spotted 92 | . 31 6 45 5 . 5 Peak Tracking Total 6 | . 5 3 6 3 2 4 Tactical Retreats 4 | . 2 . 2 . . . Traps | -11 -10 -10 -9 -9 -9 -8 ------- Run | Yrd Mat Min Mat Min Exi Min Traps Triggered 3 | . 2 . 1 . . . Indirectly . | . . . . . . . Trap Hack Attempts . | . . . . . . . Triggered . | . . . . . . . Disarmed . | . . . . . . . Reprogrammed . | . . . . . . . Reused . | . . . . . . . Traps Extracted . | . . . . . . . Installed . | . . . . . . . Triggered . | . . . . . . . Machines | -11 -10 -10 -9 -9 -9 -8 ---------- Run | Yrd Mat Min Mat Min Exi Min Machines Disabled 2 | . . . 2 . . . Max in Single Turn 1 | . . . 1 . . . Machines Repaired . | . . . . . . . Machines Dismantled . | . . . . . . . Machines Sabotaged . | . . . . . . . Overloaded Fab Kills . | . . . . . . . Hacking | -11 -10 -10 -9 -9 -9 -8 --------- Run | Yrd Mat Min Mat Min Exi Min Machines Accessed 17 | . 6 1 8 . 1 1 Terminals 16 | . 6 1 8 . . 1 Fabricators . | . . . . . . . Repair Stations . | . . . . . . . Recycling Units . | . . . . . . . Scanalyzers . | . . . . . . . Garrison Access . | . . . . . . . Total Hacks 44 | . 19 2 20 . 1 2 Successful 19 | . 10 . 8 . 1 . Failed 24 | . 8 2 12 . . 2 Catastrophic 3 | . 1 1 . . . 1 Database Lockouts 1 | . 1 . . . . . Manual 44 | . 19 2 20 . 1 2 Terminals 43 | . 19 2 20 . . 2 Fabricators . | . . . . . . . Repair Stations . | . . . . . . . Recycling Units . | . . . . . . . Scanalyzers . | . . . . . . . Garrison Access . | . . . . . . . Terminal Hacks 2 | . 1 . . . 1 . Robot Analysis 1 | . 1 . . . . . Derelict Proto ID Bank 1 | . . . . . 1 . Fabricator Hacks . | . . . . . . . Repair Station Hacks . | . . . . . . . Recycling Unit Hacks . | . . . . . . . Scanalyzer . | . . . . . . . Garrison Access Hacks . | . . . . . . . Unauthorized Hacks 17 | . 9 . 8 . . . Terminals 17 | . 9 . 8 . . . Botnet 6 | . 3 . 3 . . . Operators 1 | . 1 . . . . . Skim 10 | . 5 . 5 . . . Fabricators . | . . . . . . . Repair Stations . | . . . . . . . Recycling Units . | . . . . . . . Scanalyzers . | . . . . . . . Garrison Access . | . . . . . . . Data Cores Recovered 1 | . . . 1 . . . Used . | . . . . . . . Hacking Detections 16 | . 6 1 8 . . 1 Full Trace Events . | . . . . . . . Feedback Events . | . . . . . . . Feedback Blocked . | . . . . . . . Robot Schematics Acquired . | . . . . . . . Robots Built . | . . . . . . . Authchips . | . . . . . . . Time . | . . . . . . . Total Robot Build Rating . | . . . . . . . Part Schematics Acquired . | . . . . . . . Parts Built . | . . . . . . . Authchips . | . . . . . . . Time . | . . . . . . . Total Part Build Rating . | . . . . . . . Parts Repaired . | . . . . . . . Time . | . . . . . . . Parts Recycled . | . . . . . . . Recycled Matter . | . . . . . . . Retrieved Matter . | . . . . . . . Retrieved Components . | . . . . . . . Parts Scanalyzed . | . . . . . . . Part Schematics Acquired . | . . . . . . . Parts Damaged . | . . . . . . . Bothacking | -11 -10 -10 -9 -9 -9 -8 ------------ Run | Yrd Mat Min Mat Min Exi Min Used RIF Installer . | . . . . . . . Robots Hacked . | . . . . . . . Non-combat . | . . . . . . . Combat . | . . . . . . . Robot Hacks Applied . | . . . . . . . Relay Couplers Released . | . . . . . . . Fabnet Peak Effective % . | . . . . . . . Robots Rewired . | . . . . . . . Allies Hacked . | . . . . . . . Hacks Repelled . | . . . . . . . Allies | -11 -10 -10 -9 -9 -9 -8 -------- Run | Yrd Mat Min Mat Min Exi Min Total Allies 5 | . . 5 . . . . Largest Group 3 | . . 3 3 . . . Highest-Rated Group 43 | . . 43 40 . . . Highest-Rated Ally 31 | . . 31 16 . . . Total Orders . | . . . . . . . Ally Attacks 64 | . . 1 63 . . . Total Damage 551 | . . . 551 . . . Kills 12 | . . . 12 . . . Allies Corrupted . | . . . . . . . Allies Melted . | . . . . . . . Intel | -11 -10 -10 -9 -9 -9 -8 ------- Run | Yrd Mat Min Mat Min Exi Min Robot Analysis Total 1 | . 1 . . . . . Derelict Logs Recovered 3 | . . 2 . 1 . . Drone Launches . | . . . . . . . Drone Recoveries . | . . . . . . . Exploration | -11 -10 -10 -9 -9 -9 -8 ------------- Run | Yrd Mat Min Mat Min Exi Min Turns Passed 6255 | . 1239 1705 2289 537 353 132 Spaces Moved 2771 | 1 528 643 1050 298 210 41 Core . | . . . . . . . Treads 1557 | . . 248 760 298 210 41 Legs 924 | 1 528 395 . . . . Wheels 290 | . . . 290 . . . Hover . | . . . . . . . Flight . | . . . . . . . Fastest Speed 120 | 120 120 240 140 160 160 160 Average Speed 197 | 120 191 252 187 160 160 160 Slowest Speed 320 | 120 260 320 240 160 160 160 Overloaded Moves . | . . . . . . . Propulsion Burnouts . | . . . . . . . Robots Hopped . | . . . . . . . Cave-ins Triggered . | . . . . . . . Exploration Rate (%) 58 | 2 95 99 92 50 62 10 Regions Visited 6 Branch Regions 4 Pre-discovered Areas 3 | . . 1 1 1 . . Known Exits Taken 1 | . . . 1 . . . Unknown Exits Taken 5 | 1 1 1 . 1 1 . Scrap Searched 2 | . . 1 . 1 . . Spaces Dug . | . . . . . . . Terrain Destroyed . | . . . . . . . Melee . | . . . . . . . Projectile . | . . . . . . . AOE . | . . . . . . . Terrain Rammed . | . . . . . . . Walls Destroyed . | . . . . . . . Machines Disabled . | . . . . . . . Actions | -11 -10 -10 -9 -9 -9 -8 --------- Run | Yrd Mat Min Mat Min Exi Min Total 3190 | . 633 679 1244 327 225 82 Wait 151 | . 31 6 62 10 15 27 Move 2765 | . 527 642 1049 297 209 41 Hop . | . . . . . . . Pick Up 27 | . 2 . 24 1 . . Fast Attach 10 | . 2 1 6 1 . . Attach 7 | . . 5 1 . . 1 Detach 1 | . 1 . . . . . Swap 17 | . 7 . 8 . . 2 Drop 27 | . 1 1 24 1 . . Fire 166 | . 56 22 63 13 1 11 Melee . | . . . . . . . Ram . | . . . . . . . Kick 6 | . 6 . . . . . Crush 13 | . . 2 7 4 . . Escape Stasis . | . . . . . . . Rewire . | . . . . . . . Trap . | . . . . . . . Miscellaneous . | . . . . . . . Route ------- -11/Scrapyard -10/Materials (discovered 4 exits: *Mat x3 / *Min) -10/Mines (discovered 3 exits: *Mat x2 / [*Sub]) -9/Materials (discovered 6 exits: *Mat x3 / *Min x2 / [*Sto]) -9/Mines (discovered 4 exits: *Mat x2 / *Exi / [*Zio]) -9/Exiles (discovered 2 exits: *Min x2) -8/Mines History --------- Turn | Location | Event 1 | -11/Scrapyard | Discovered new exit (range 0) 1 | -11/Scrapyard | Entered Materials 149 | -10/Materials | Discovered new exit (range 4) 238 | -10/Materials | Discovered new exit (range 8) 247 | -10/Materials | Central database locked down 307 | -10/Materials | Build established: Mutant 594 | -10/Materials | Discovered new exit (range 16) 759 | -10/Materials | Discovered new exit (range 9) 1240 | -10/Materials | Entered Mines 1597 | -10/Mines | Learned location of 1 exit from Materials 1636 | -10/Mines | Learned Materials garrison access intel 1653 | -10/Mines | Assembled infested the area 1709 | -10/Mines | Core integrity fell below 50% 1812 | -10/Mines | Found a hidden stash of uninstalled traps 2251 | -10/Mines | Discovered new exit (range 7) 2336 | -10/Mines | Core integrity fell below 20% 2361 | -10/Mines | Lost 4 parts (1p1n1u1w) 2417 | -10/Mines | Discovered new exit (range 6) 2518 | -10/Mines | Assisted by bots powering up and referring to "LRC-V3" 2544 | -10/Mines | Discovered new exit (range 4) 2548 | -10/Mines | Learned location of Storage (-9) 2945 | -10/Mines | Entered Materials 2945 | -9/Materials | Accompanied by 3 allies 2945 | -9/Materials | Evolved 2 slots: Propulsion x1, Weapon x1 2946 | -9/Materials | Identified exit to Materials 3134 | -9/Materials | Discovered new exit (range 15) 3287 | -9/Materials | Discovered new exit (range 13) 3346 | -9/Materials | Build established: Tank 3641 | -9/Materials | Discovered exit to Materials (range 15) 3797 | -9/Materials | Build established: Scavenger-Tank 4320 | -9/Materials | Discovered new exit (range 15) 4489 | -9/Materials | Build established: Tank 4559 | -9/Materials | Learned Storage stockpile data 4612 | -9/Materials | Learned location of 1 exit from Storage 4634 | -9/Materials | Discovered exit to Materials (range 11) 4655 | -9/Materials | Learned location of Mines (-8) 4687 | -9/Materials | Learned Storage stockpile data 4709 | -9/Materials | Learned Storage emergency access door positions 4722 | -9/Materials | Identified exit to Mines 4732 | -9/Materials | Loaded intel: 50 machine locations 4788 | -9/Materials | Learned 4 Recycling zone layouts 4834 | -9/Materials | Learned 4 Recycling zone layouts 5234 | -9/Materials | Entered Mines 5235 | -9/Mines | A Derelict revealed a hidden shortcut to a safe place 5271 | -9/Mines | Discovered exit to Materials (range 9) 5509 | -9/Mines | Deemed a non-threat by the Exiles lab entrance 5568 | -9/Mines | Found a damaged Exp. Sensor Array with a note attached 5572 | -9/Mines | Found Prototype Device 5585 | -9/Mines | Discovered exit to Materials (range 6) 5649 | -9/Mines | Build established: Scavenger-Tank 5664 | -9/Mines | Learned location of Zion (-7) 5765 | -9/Mines | Discovered new exit (range 5) 5771 | -9/Mines | Entered Exiles 5797 | -9/Exiles | Discovered new exit (range 15) 5811 | -9/Exiles | Met 8R-AWN 5839 | -9/Exiles | Met EX-HEX 5882 | -9/Exiles | Met EX-BIN 5899 | -9/Exiles | Aligned with FarCom system 5901 | -9/Exiles | Given EX-Vault access code 5939 | -9/Exiles | Opened EX-Vault 5976 | -9/Exiles | Warned to stay clear of 0b10 Research branches 6004 | -9/Exiles | Exiles lab attacked by MAIN.C 6090 | -9/Exiles | Discovered new exit (range 11) 6122 | -9/Exiles | Attacked by the Exiles 6124 | -9/Exiles | Entered Mines 6214 | -8/Mines | Core integrity fell below 50% 6237 | -8/Mines | P1-3CE came to Exiles' defense 6255 | -8/Mines | Core integrity fell below 20% 6256 | -8/Mines | Destroyed by P1-3CE with P1-3CE's Gatling Flakker Last Messages --------------- LOCATION=UNKNOWN GOAL=ESCAPE 06171_ G-47 Trooper destroyed. 06181_ Switching to secondary target: G-50 Soldier. 06181_ Hvy. Assault Rifle destroyed. 06186_ K-01 Serf collects debris. 06196_ G-50 Soldier destroyed. 06197_ Acquired 40 matter. 06201_ Acquired 10 matter. 06209_ Connecting with Terminal... 06209_ Current location identified: Mines 06210_ R-06 Scavenger knocked back. 06210_ R-06 Scavenger destroyed. 06234_ U-05 Engineer knocked back. 06234_ U-05 Engineer destroyed. 06237_ P1-3CE: "I came as fast as I could... Wait, it was you!" 06250_ Core Extractor disabled. 06250_ Lgt. Ion Engine destroyed. 06252_ Lgt. Treads destroyed. 06256_ Overheating: Energy bleed (-7). Map ----- +----------------------------------------------------+ | | | | | | | | | | | | | | | | | | | | | | | | | | | | | | | | | ?????????????????????????????????????????????????? | | ?????###?????????????????????????????????????????? | | ????## ##???????????????????????????????????????? | | ????# ######??????????????????????????????????? | | ???## #??????????????????????????????????? | | ??## #### #??????????????????????????????????? | | ??# ##?# #####??????????????????????????????? | | ??# #?# #??####????????????????????????? | | ??# #?##### ####;#;##??????????????????????? | | ??## ##?????# ## M @#??????????????????????? | | ???#######??????# #T " #??????????????????????? | | ????????????????# ## """#??????????????????????? | | ????????????????# ## """#??????????????????????? | | ????????????????# ## !! #??????????????????????? | | ????????????????# ####==###??????????????????????? | | ????????????????# *%[=#????????????????????????? | | ????????????????######%!#????????????????????????? | | ?????????????????????#=!#????????????????????????? | | ?????????????????????|!=#????????????????????????? | | ????????????????????? ! #????????????????????????? | | ????????????????????? #????????????????????????? | | ????????????????????? #????????????????????????? | | ???????????????????? ????????????????????????? | | ???????????????????? ????????????????????????? | | ???????????????????? ????????????????????????? | | ???????????????????? ????????????????????????? | | ??????????????????? ???????????????????????? | | ??????????????????? ???????????????????????? | | ???????????????????# ???????????????????????? | | ???????????????????## =*#???????????????????????? | | ?????????????????????# ????????????????????????? | | ?????????????????????????????????????????????????? | | ?????????????????????????????????????????????????? | | ?????????????????????????????????????????????????? | +----------------------------------------------------+ Best States ------------- Heat Dissipation 28 Energy Generation 12 Energy Capacity 265 Matter Stores 300 Matter Capacity 300 Sight Range 16 Terrain Scan Density 10 Armor Coverage 225 Evasion (%) 55 Recoil Reduction 3 Item Schematics ----------------- None Robot Schematics ------------------ None Fabricated ------------ Nothing Alien Tech Used ----------------- None Achievements -------------- None Challenges ------------ None Game ------ Seed RecoilSuperdenseScreen Manual? 0 Play Time 00:19:13 Cumulative 314.0 hours Start 2024.09.21 @ 17:28:36 End 2024.09.21 @ 17:46:31 Sessions 1 Manual Loads 0 Difficulty Rogue Special Mode None Game No. 394 Rogue 394 Adventurer 0 Explorer 0 Win Type - Total 21 Types 10/1/5/1/1/1/0/1/1 Lore% 81 Gallery% 81 Achievement% 74 Wizard Run 0 Options --------- Layout 0 ASCII 0 Keyboard 0 Movement Numpad Keybinds 0 Fullscreen 1 Font 18/SmallcapsGlow Map View 76x50 Zoom Use 0% Tactical HUD 1 Map Filters NONE Filters NONE Steam 1 RUN: e77301e0-752e-46bd-b3df-dbafda05acac